fUSD/lending_fUSD_20260430
["ID","MTS","AMOUNT","RATE_DAILY","PERIOD"]
[421353471,1777488659000,-525.95885708,0.00037955,2]
[421353465,1777488659000,-300.0,0.00037955,2]
[421353475,1777488659000,-723.61897705,0.00037955,2]
[421353472,1777488659000,-1063.30858973,0.00037955,2]
[421353477,1777488659000,-300.0,0.00037955,2]
[421353478,1777488659000,-300.0,0.00037955,2]
[421353549,1777488660000,-861.48587114,0.00037955,2]
[421353561,1777488660000,-487.58240058,0.00037955,2]
[421353551,1777488660000,-462.29239414,0.00037955,2]
[421353548,1777488660000,-308.5418779,0.00037955,2]
[421353545,1777488660000,-1790.27047416,0.00037955,2]
[421353537,1777488660000,-890.38635649,0.00037955,2]
[421353556,1777488660000,-300.0,0.00037955,2]
[421353546,1777488660000,-342.75795842,0.00037955,2]
[421353542,1777488660000,-579.89907072,0.00037955,2]
[421353540,1777488660000,-300.0,0.00037955,2]
[421353541,1777488660000,-300.0,0.00037955,2]
[421353547,1777488660000,-1143.28605913,0.00037955,2]
[421353554,1777488660000,-300.0,0.00037955,2]
[421353558,1777488660000,-308.79275606,0.00037955,2]
[421353555,1777488660000,-318.5957838,0.00037955,2]
[421353550,1777488660000,-309.84039163,0.00037955,2]
[421353553,1777488660000,-450.3651763,0.00037955,2]
[421353568,1777488660000,-890.38635649,0.00037955,2]
[421353569,1777488660000,-302.03006712,0.00037955,2]
[421353557,1777488660000,-522.93942189,0.00037955,2]
[421353566,1777488660000,-525.95885708,0.00037955,2]
[421353563,1777488660000,-491.01442266,0.00037955,2]
[421353567,1777488660000,-1063.30858973,0.00037955,2]
[421353560,1777488660000,-1090.98668708,0.00037955,2]
[421353565,1777488660000,-300.0,0.00037955,2]
[421353532,1777488660000,-390.42236683,0.00037955,2]
[421353552,1777488660000,-433.17313298,0.00037955,2]
[421353538,1777488660000,-302.03006712,0.00037955,2]
[421353524,1777488660000,-300.0,0.00037955,2]
[421353534,1777488660000,-300.0,0.00037955,2]
[421353564,1777488660000,-602.42963136,0.00037955,2]
[421353519,1777488660000,-462.29239414,0.00037955,2]
[421353512,1777488660000,-839.32738085,0.00037955,2]
[421353516,1777488660000,-308.5418779,0.00037955,2]
[421353517,1777488660000,-861.48587114,0.00037955,2]
[421353515,1777488660000,-1143.28605913,0.00037955,2]
[421353514,1777488660000,-1790.27047416,0.00037955,2]
[421353518,1777488660000,-309.84039163,0.00037955,2]
[421353513,1777488660000,-300.0,0.00037955,2]
[421353511,1777488660000,-300.0,0.00037955,2]
[421353522,1777488660000,-300.0,0.00037955,2]
[421353520,1777488660000,-433.17313298,0.00037955,2]
[421353536,1777488660000,-1063.30858973,0.00037955,2]
[421353521,1777488660000,-450.3651763,0.00037955,2]
[421353531,1777488660000,-491.01442266,0.00037955,2]
[421353529,1777488660000,-300.0,0.00037955,2]
[421353526,1777488660000,-308.79275606,0.00037955,2]
[421353528,1777488660000,-1090.98668708,0.00037955,2]
[421353527,1777488660000,-300.0,0.00037955,2]
[421353530,1777488660000,-300.0,0.00037955,2]
[421353525,1777488660000,-522.93942189,0.00037955,2]
[421353544,1777488660000,-585.42181549,0.00037955,2]
[421353543,1777488660000,-839.32738085,0.00037955,2]
[421353533,1777488660000,-602.42963136,0.00037955,2]
[421353539,1777488660000,-723.61897705,0.00037955,2]
[421353535,1777488660000,-525.95885708,0.00037955,2]
[421353523,1777488660000,-300.0,0.00037955,2]
[421353562,1777488660000,-300.0,0.00037955,2]
[421353559,1777488660000,-300.0,0.00037955,2]
[421353570,1777488660000,-723.61897705,0.00037955,2]
[421353596,1777488660000,-302.03006712,0.00037955,2]
[421353598,1777488660000,-300.0,0.00037955,2]
[421353605,1777488660000,-2250.0,0.00038,10]
[421353604,1777488660000,-1500.0,0.00038,120]
[421353607,1777488660000,-162.31979731,0.00038,7]
[421353606,1777488660000,-162.31979731,0.00038,3]
[421353608,1777488660000,-288.63,0.00038014,120]
[421353609,1777488660000,-2275.8589,0.0003806,2]
[421353610,1777488660000,-10976.0944,0.0003806,2]
[421353611,1777488660000,-2004.1146,0.0003806,2]
[421353612,1777488660000,-450.0,0.0003807,2]
[421353613,1777488660000,-297.4469958,0.000381,33]
[421353615,1777488660000,-1542.27662375,0.00038125,120]
[421353614,1777488660000,-200.0,0.00038111,2]
[421353616,1777488660000,-151.0,0.00038125,30]
[421353617,1777488660000,-1500.0,0.00038168,5]
[421353619,1777488660000,-151.0,0.00038189,7]
[421353620,1777488660000,-430.42,0.00038189,120]
[421353618,1777488660000,-151.0,0.00038189,7]
[421353621,1777488660000,-2500.58,0.00038189,120]
[421353622,1777488660000,-10976.0944,0.00038196,2]
[421353624,1777488660000,-295.25,0.000382,30]
[421353627,1777488660000,-212.82518416,0.00038289,120]
[421353625,1777488660000,-102138.23,0.000382,7]
[421353623,1777488660000,-2500.0,0.000382,60]
[421353629,1777488660000,-250.0,0.00038301,80]
[421353572,1777488660000,-512.44826372,0.00037955,2]
[421353603,1777488660000,-161.27095312,0.00038,20]
[421353601,1777488660000,-342.75795842,0.00037955,2]
[421353626,1777488660000,-500.0,0.00038219,120]
[421353602,1777488660000,-308.0,0.00038,120]
[421353597,1777488660000,-723.61897705,0.00037955,2]
[421353579,1777488660000,-309.84039163,0.00037955,2]
[421353577,1777488660000,-308.5418779,0.00037955,2]
[421353574,1777488660000,-1790.27047416,0.00037955,2]
[421353578,1777488660000,-861.48587114,0.00037955,2]
[421353573,1777488660000,-839.32738085,0.00037955,2]
[421353575,1777488660000,-342.75795842,0.00037955,2]
[421353628,1777488660000,-2004.1146,0.00038298,2]
[421353580,1777488660000,-462.29239414,0.00037955,2]
[421353571,1777488660000,-300.0,0.00037955,2]
[421353581,1777488660000,-433.17313298,0.00037955,2]
[421353582,1777488660000,-450.3651763,0.00037955,2]
[421353583,1777488660000,-300.0,0.00037955,2]
[421353576,1777488660000,-1143.28605913,0.00037955,2]
[421353586,1777488660000,-308.79275606,0.00037955,2]
[421353585,1777488660000,-522.93942189,0.00037955,2]
[421353599,1777488660000,-839.32738085,0.00037955,2]
[421353600,1777488660000,-596.75682492,0.00037955,2]
[421353593,1777488660000,-525.95885708,0.00037955,2]
[421353594,1777488660000,-1063.30858973,0.00037955,2]
[421353592,1777488660000,-300.0,0.00037955,2]
[421353595,1777488660000,-890.38635649,0.00037955,2]
[421353588,1777488660000,-1090.98668708,0.00037955,2]
[421353587,1777488660000,-300.0,0.00037955,2]
[421353591,1777488660000,-602.42963136,0.00037955,2]
[421353590,1777488660000,-491.01442266,0.00037955,2]
[421353584,1777488660000,-300.0,0.00037955,2]
[421353589,1777488660000,-300.0,0.00037955,2]
[421353668,1777488661000,-152.50383876,0.000385,120]
[421353677,1777488661000,-217.32289099,0.000385,60]
[421353667,1777488661000,-181.9624645,0.000385,120]
[421353666,1777488661000,-181.96246452,0.000385,120]
[421353660,1777488661000,-150.0,0.00038491,2]
[421353656,1777488661000,-150.0,0.00038491,2]
[421353655,1777488661000,-10976.0944,0.00038468,2]
[421353669,1777488661000,-167.17541603,0.000385,120]
[421353661,1777488661000,-150.0,0.00038491,2]
[421353659,1777488661000,-150.0,0.00038491,2]
[421353654,1777488661000,-2275.8589,0.00038441,2]
[421353676,1777488661000,-152.15469598,0.000385,120]
[421353670,1777488661000,-152.50383874,0.000385,120]
[421353672,1777488661000,-82153.16465812,0.000385,2]
[421353674,1777488661000,-2500.0,0.000385,60]
[421353675,1777488661000,-309.4521,0.000385,30]
[421353673,1777488661000,-779.2254,0.000385,120]
[421353678,1777488661000,-155.52160088,0.000385,60]
[421353679,1777488661000,-1154.3634,0.000385,60]
[421353690,1777488661000,-102138.23,0.000386,7]
[421353682,1777488661000,-1658.52,0.000385,30]
[421353689,1777488661000,-295.25,0.000386,30]
[421353658,1777488661000,-150.0,0.00038491,2]
[421353681,1777488661000,-1658.52,0.000385,30]
[421353671,1777488661000,-152.16569212,0.000385,120]
[421353657,1777488661000,-150.0,0.00038491,2]
[421353642,1777488661000,-668.5,0.00038356,120]
[421353662,1777488661000,-150.0,0.00038491,2]
[421353680,1777488661000,-1658.52,0.000385,120]
[421353639,1777488661000,-600.0,0.00038356,120]
[421353635,1777488661000,-600.0,0.00038356,120]
[421353633,1777488661000,-600.0,0.00038356,120]
[421353631,1777488661000,-1361.46589417,0.00038356,30]
[421353632,1777488661000,-160.87202219,0.00038356,30]
[421353637,1777488661000,-600.0,0.00038356,120]
[421353636,1777488661000,-600.0,0.00038356,120]
[421353634,1777488661000,-600.0,0.00038356,120]
[421353638,1777488661000,-600.0,0.00038356,120]
[421353641,1777488661000,-307.78,0.00038356,120]
[421353640,1777488661000,-470.69,0.00038356,120]
[421353643,1777488661000,-632.95,0.00038356,30]
[421353651,1777488661000,-350.0,0.00038424,2]
[421353644,1777488661000,-250.52,0.000384,30]
[421353646,1777488661000,-350.0,0.00038424,2]
[421353648,1777488661000,-350.0,0.00038424,2]
[421353645,1777488661000,-350.0,0.00038424,2]
[421353650,1777488661000,-350.0,0.00038424,2]
[421353649,1777488661000,-350.0,0.00038424,2]
[421353647,1777488661000,-350.0,0.00038424,2]
[421353653,1777488661000,-221.0,0.00038424,2]
[421353663,1777488661000,-150.0,0.00038491,2]
[421353664,1777488661000,-232.0,0.00038491,2]
[421353652,1777488661000,-350.0,0.00038424,2]
[421353665,1777488661000,-298.7269565,0.000385,120]
[421353684,1777488661000,-310.976,0.000385,30]
[421353630,1777488661000,-10976.0944,0.00038332,2]
[421353687,1777488661000,-208.0,0.000385,120]
[421353718,1777488661000,-10976.0944,0.0003874,2]
[421353721,1777488661000,-167.17541603,0.00038774,120]
[421353719,1777488661000,-250.0,0.00038771,100]
[421353720,1777488661000,-152.50383876,0.00038774,120]
[421353722,1777488661000,-152.16569212,0.00038774,120]
[421353724,1777488661000,-2500.0,0.000388,60]
[421353723,1777488661000,-2004.1146,0.00038774,2]
[421353725,1777488661000,-2275.8589,0.00038822,2]
[421353726,1777488661000,-1657.51678935,0.00038834,2]
[421353727,1777488661000,-8100.25390518,0.00038866,108]
[421353730,1777488661000,-160.18,0.000389,14]
[421353728,1777488661000,-10976.0944,0.00038876,2]
[421353731,1777488661000,-209.0,0.0003891,30]
[421353733,1777488661000,-150.0,0.00039,5]
[421353734,1777488661000,-1528.0,0.00039,60]
[421353736,1777488661000,-31184.43185792,0.00039,2]
[421353737,1777488661000,-1327.0,0.00039,120]
[421353735,1777488661000,-1259.60911015,0.00039,120]
[421353742,1777488661000,-446.63795196,0.00039,2]
[421353738,1777488661000,-1500.0,0.00039,120]
[421353741,1777488661000,-318.06341881,0.00039,2]
[421353740,1777488661000,-200.17502734,0.00039,2]
[421353739,1777488661000,-170.0,0.00039,2]
[421353732,1777488661000,-214.33253288,0.00038915,120]
[421353683,1777488661000,-1500.0,0.000385,120]
[421353714,1777488661000,-500.0,0.000387,120]
[421353713,1777488661000,-500.0,0.000387,120]
[421353729,1777488661000,-1712.26611188,0.0003888,60]
[421353709,1777488661000,-500.0,0.000387,120]
[421353688,1777488661000,-2004.1146,0.00038536,2]
[421353715,1777488661000,-500.0,0.000387,120]
[421353685,1777488661000,-2086.82,0.000385,120]
[421353686,1777488661000,-150.0,0.000385,120]
[421353691,1777488661000,-175.45,0.00038603,120]
[421353692,1777488661000,-175.45,0.00038603,120]
[421353693,1777488661000,-175.45,0.00038603,120]
[421353700,1777488661000,-405.012438,0.00038604,30]
[421353695,1777488661000,-583.89467,0.00038604,30]
[421353697,1777488661000,-583.89467,0.00038604,30]
[421353694,1777488661000,-10976.0944,0.00038604,2]
[421353699,1777488661000,-405.012438,0.00038604,30]
[421353702,1777488661000,-405.012438,0.00038604,30]
[421353696,1777488661000,-583.89467,0.00038604,30]
[421353705,1777488661000,-500.0,0.000387,120]
[421353708,1777488661000,-500.0,0.000387,120]
[421353704,1777488661000,-236.46167873,0.00038638,120]
[421353710,1777488661000,-500.0,0.000387,120]
[421353716,1777488661000,-500.0,0.000387,120]
[421353712,1777488661000,-500.0,0.000387,120]
[421353707,1777488661000,-500.0,0.000387,120]
[421353711,1777488661000,-500.0,0.000387,120]
[421353706,1777488661000,-500.0,0.000387,120]
[421353701,1777488661000,-405.012438,0.00038604,30]
[421353703,1777488661000,-500.0,0.0003863,120]
[421353698,1777488661000,-583.89467,0.00038604,30]
[421353717,1777488661000,-2000.0,0.00038716,5]
[421353782,1777488662000,-237687.11300473,0.000395,2]
[421353783,1777488662000,-1500.0,0.000395,120]
[421353780,1777488662000,-500.0,0.00039452,120]
[421353790,1777488662000,-507.728049,0.000395,30]
[421353781,1777488662000,-2004.1146,0.00039488,2]
[421353771,1777488662000,-2500.0,0.00039264,5]
[421353774,1777488662000,-167.17541603,0.00039322,120]
[421353777,1777488662000,-2500.0,0.000394,60]
[421353775,1777488662000,-152.16569212,0.00039322,120]
[421353776,1777488662000,-188.39352,0.00039352,32]
[421353787,1777488662000,-150.0,0.000395,120]
[421353779,1777488662000,-10976.0944,0.0003942,2]
[421353784,1777488662000,-150.0,0.000395,120]
[421353796,1777488662000,-270.62,0.00039551,30]
[421353788,1777488662000,-151.0,0.000395,30]
[421353785,1777488662000,-151.0,0.000395,30]
[421353789,1777488662000,-151.0,0.000395,28]
[421353791,1777488662000,-507.728049,0.000395,30]
[421353792,1777488662000,-507.728049,0.000395,30]
[421353793,1777488662000,-507.728049,0.000395,30]
[421353795,1777488662000,-250.0,0.00039534,100]
[421353794,1777488662000,-892.82,0.00039503,120]
[421353800,1777488662000,-150.0,0.00039579,2]
[421353801,1777488662000,-2275.8589,0.00039583,2]
[421353799,1777488662000,-10976.0944,0.00039556,2]
[421353770,1777488662000,-2004.1146,0.0003925,2]
[421353786,1777488662000,-232.836867,0.000395,30]
[421353772,1777488662000,-10976.0944,0.00039284,2]
[421353744,1777488662000,-295.25,0.00039,30]
[421353773,1777488662000,-152.50383876,0.00039322,120]
[421353743,1777488662000,-7175.881945,0.00039,60]
[421353798,1777488662000,-402.05,0.00039552,30]
[421353745,1777488662000,-102138.23,0.00039,7]
[421353747,1777488662000,-2004.1146,0.00039012,2]
[421353746,1777488662000,-10976.0944,0.00039012,2]
[421353754,1777488662000,-716.354252,0.00039068,30]
[421353749,1777488662000,-181.96246452,0.00039048,120]
[421353748,1777488662000,-500.0,0.00039041,120]
[421353751,1777488662000,-167.17541603,0.00039048,120]
[421353753,1777488662000,-716.354252,0.00039068,30]
[421353752,1777488662000,-152.16569212,0.00039048,120]
[421353750,1777488662000,-152.50383876,0.00039048,120]
[421353757,1777488662000,-423.981672,0.00039068,30]
[421353758,1777488662000,-423.981672,0.00039068,30]
[421353755,1777488662000,-716.354252,0.00039068,30]
[421353756,1777488662000,-716.354252,0.00039068,30]
[421353765,1777488662000,-10976.0944,0.00039148,2]
[421353761,1777488662000,-2500.0,0.000391,60]
[421353763,1777488662000,-162.31979731,0.000391,7]
[421353767,1777488662000,-6424.56949035,0.00039197,2]
[421353760,1777488662000,-423.981672,0.00039068,30]
[421353764,1777488662000,-255.64,0.00039117,120]
[421353759,1777488662000,-423.981672,0.00039068,30]
[421353766,1777488662000,-280.0,0.00039188,58]
[421353762,1777488662000,-162.31979731,0.000391,3]
[421353769,1777488662000,-2275.8589,0.00039202,2]
[421353768,1777488662000,-151.0,0.000392,30]
[421353778,1777488662000,-102138.23,0.000394,7]
[421353797,1777488662000,-500.0,0.00039552,30]
[421353805,1777488662000,-167.17541603,0.00039596,120]
[421353804,1777488662000,-152.50383876,0.00039596,120]
[421353834,1777488662000,-405.012438,0.00039726,30]
[421353837,1777488662000,-405.012438,0.00039726,30]
[421353835,1777488662000,-405.012438,0.00039726,30]
[421353840,1777488662000,-600.0,0.00039726,120]
[421353851,1777488662000,-507.728049,0.00039749,30]
[421353850,1777488662000,-507.728049,0.00039749,30]
[421353846,1777488662000,-10018.31293702,0.00039747,2]
[421353839,1777488662000,-600.0,0.00039726,120]
[421353847,1777488662000,-151.0,0.00039749,30]
[421353844,1777488662000,-482.61606657,0.00039726,10]
[421353852,1777488662000,-507.728049,0.00039749,30]
[421353849,1777488662000,-151.0,0.00039749,28]
[421353842,1777488662000,-600.0,0.00039726,120]
[421353843,1777488662000,-1633.75907301,0.00039726,10]
[421353841,1777488662000,-600.0,0.00039726,120]
[421353848,1777488662000,-189.919535,0.00039749,30]
[421353845,1777488662000,-157.34092583,0.00039738,7]
[421353853,1777488662000,-507.728049,0.00039749,30]
[421353856,1777488662000,-716.354252,0.00039749,30]
[421353854,1777488662000,-151.0,0.00039749,30]
[421353855,1777488662000,-716.354252,0.00039749,30]
[421353802,1777488662000,-225.28,0.00039585,30]
[421353857,1777488662000,-716.354252,0.00039749,30]
[421353862,1777488662000,-423.981672,0.00039749,30]
[421353860,1777488662000,-423.981672,0.00039749,30]
[421353858,1777488662000,-716.354252,0.00039749,30]
[421353859,1777488662000,-423.981672,0.00039749,30]
[421353833,1777488662000,-583.89467,0.00039726,30]
[421353836,1777488662000,-405.012438,0.00039726,30]
[421353861,1777488662000,-423.981672,0.00039749,30]
[421353827,1777488662000,-193.2725,0.00039726,120]
[421353838,1777488662000,-600.0,0.00039726,120]
[421353806,1777488662000,-152.16569212,0.00039596,120]
[421353807,1777488662000,-892.82,0.00039603,120]
[421353813,1777488662000,-377.5011,0.000397,30]
[421353808,1777488662000,-4436.8219691,0.00039638,2]
[421353810,1777488662000,-10976.0944,0.00039692,2]
[421353811,1777488662000,-2174.4305,0.000397,120]
[421353812,1777488662000,-2500.0,0.000397,60]
[421353809,1777488662000,-500.0,0.00039686,60]
[421353824,1777488662000,-160.18,0.000397,14]
[421353814,1777488662000,-1492.67,0.000397,120]
[421353817,1777488662000,-1326.816,0.000397,120]
[421353815,1777488662000,-1492.67,0.000397,120]
[421353803,1777488662000,-181.96246452,0.00039596,120]
[421353816,1777488662000,-1492.67,0.000397,60]
[421353825,1777488662000,-892.82,0.00039703,120]
[421353832,1777488662000,-583.89467,0.00039726,30]
[421353829,1777488662000,-2004.1146,0.00039726,2]
[421353828,1777488662000,-193.28,0.00039726,30]
[421353826,1777488662000,-777.0,0.0003972,120]
[421353830,1777488662000,-583.89467,0.00039726,30]
[421353822,1777488662000,-1878.14,0.000397,120]
[421353818,1777488662000,-1326.816,0.000397,30]
[421353820,1777488662000,-1878.14,0.000397,60]
[421353821,1777488662000,-1669.45,0.000397,120]
[421353831,1777488662000,-583.89467,0.00039726,30]
[421353819,1777488662000,-1326.81,0.000397,60]
[421353823,1777488662000,-1669.45,0.000397,60]
[421353898,1777488663000,-507.728049,0.000399,30]
[421353889,1777488663000,-152.16569212,0.0003987,120]
[421353890,1777488663000,-170.08825652,0.0003989,2]
[421353894,1777488663000,-342.04600343,0.000399,120]
[421353897,1777488663000,-151.0,0.000399,28]
[421353892,1777488663000,-244.5983845,0.000399,120]
[421353896,1777488663000,-151.0,0.000399,30]
[421353893,1777488663000,-172.6027544,0.000399,120]
[421353895,1777488663000,-500137.99594877,0.000399,20]
[421353891,1777488663000,-172.4987554,0.000399,120]
[421353901,1777488663000,-507.728058,0.000399,30]
[421353902,1777488663000,-6000.0,0.000399,14]
[421353910,1777488663000,-201.902394,0.0003997,30]
[421353903,1777488663000,-160.18,0.000399,14]
[421353900,1777488663000,-507.728049,0.000399,30]
[421353912,1777488663000,-716.354252,0.0003997,30]
[421353911,1777488663000,-716.354252,0.0003997,30]
[421353904,1777488663000,-892.82,0.00039903,120]
[421353905,1777488663000,-500.0,0.00039914,30]
[421353906,1777488663000,-2275.8593,0.00039963,2]
[421353888,1777488663000,-167.17541603,0.0003987,120]
[421353899,1777488663000,-507.728049,0.000399,30]
[421353887,1777488663000,-152.50383876,0.0003987,120]
[421353870,1777488663000,-206.2269075,0.000398,30]
[421353883,1777488663000,-10976.0944,0.00039827,2]
[421353863,1777488663000,-576811.8548,0.00039749,30]
[421353907,1777488663000,-10976.0952,0.00039963,2]
[421353864,1777488663000,-150.0,0.0003975,120]
[421353875,1777488663000,-583.89467,0.000398,30]
[421353867,1777488663000,-3000.0,0.00039783,30]
[421353872,1777488663000,-102138.23,0.000398,7]
[421353866,1777488663000,-732.35160614,0.0003976,120]
[421353869,1777488663000,-184.83,0.000398,30]
[421353868,1777488663000,-108021.65966045,0.000398,60]
[421353871,1777488663000,-4800.0,0.000398,14]
[421353874,1777488663000,-583.89467,0.000398,30]
[421353873,1777488663000,-583.89467,0.000398,30]
[421353876,1777488663000,-583.89467,0.000398,30]
[421353879,1777488663000,-405.012438,0.000398,30]
[421353878,1777488663000,-405.012438,0.000398,30]
[421353881,1777488663000,-892.82,0.00039803,120]
[421353886,1777488663000,-500.0,0.00039863,120]
[421353885,1777488663000,-212.82518416,0.00039855,120]
[421353880,1777488663000,-405.012438,0.000398,30]
[421353877,1777488663000,-405.012438,0.000398,30]
[421353882,1777488663000,-3000.0,0.00039812,5]
[421353884,1777488663000,-150.0,0.00039834,2]
[421353908,1777488663000,-2004.1148,0.00039963,2]
[421353865,1777488663000,-150.0,0.0003975,120]
[421353923,1777488663000,-405.012438,0.0003997,30]
[421353940,1777488663000,-500.0,0.0004,120]
[421353944,1777488663000,-968.09608015,0.0004,2]
[421353943,1777488663000,-304.90727314,0.0004,2]
[421353942,1777488663000,-1580.67175295,0.0004,2]
[421353945,1777488663000,-318.53596591,0.0004,2]
[421353941,1777488663000,-395.08575378,0.0004,2]
[421353946,1777488663000,-513.89519218,0.0004,2]
[421353950,1777488663000,-1003.11,0.0004,2]
[421353947,1777488663000,-164.0,0.0004,120]
[421353948,1777488663000,-1977.32948295,0.0004,120]
[421353951,1777488663000,-1000.0,0.0004,2]
[421353953,1777488663000,-1000.0,0.0004,2]
[421353955,1777488663000,-317.0,0.0004,14]
[421353952,1777488663000,-1000.0,0.0004,2]
[421353954,1777488663000,-1000.0,0.0004,2]
[421353959,1777488663000,-177.69102319,0.0004,120]
[421353958,1777488663000,-566.85040353,0.0004,120]
[421353956,1777488663000,-152.99,0.0004,120]
[421353960,1777488663000,-364.22221459,0.0004,120]
[421353957,1777488663000,-485.21563976,0.0004,30]
[421353909,1777488663000,-75142.0612709,0.0003997,2]
[421353939,1777488663000,-482.29773596,0.0004,30]
[421353933,1777488663000,-500.0,0.00039999,31]
[421353949,1777488663000,-16197.26591971,0.0004,120]
[421353938,1777488663000,-157.08827755,0.0004,30]
[421353935,1777488663000,-500.0,0.00039999,31]
[421353913,1777488663000,-716.354252,0.0003997,30]
[421353925,1777488663000,-405.012438,0.0003997,30]
[421353924,1777488663000,-405.012438,0.0003997,30]
[421353914,1777488663000,-716.354252,0.0003997,30]
[421353915,1777488663000,-423.981672,0.0003997,30]
[421353916,1777488663000,-423.981672,0.0003997,30]
[421353918,1777488663000,-423.981672,0.0003997,30]
[421353919,1777488663000,-583.89467,0.0003997,30]
[421353922,1777488663000,-583.89467,0.0003997,30]
[421353921,1777488663000,-583.89467,0.0003997,30]
[421353917,1777488663000,-423.981672,0.0003997,30]
[421353920,1777488663000,-583.89467,0.0003997,30]
[421353928,1777488663000,-2316.61019264,0.00039999,120]
[421353926,1777488663000,-405.012438,0.0003997,30]
[421353927,1777488663000,-60000.0,0.0003998,30]
[421353929,1777488663000,-500.0,0.00039999,31]
[421353930,1777488663000,-500.0,0.00039999,31]
[421353931,1777488663000,-208.95588812,0.00039999,31]
[421353932,1777488663000,-524.41357788,0.00039999,31]
[421353936,1777488663000,-206.4810484,0.00039999,31]
[421353937,1777488663000,-171.16714208,0.0004,120]
[421353934,1777488663000,-228.88608512,0.00039999,31]
[421354008,1777488664000,-500.0,0.0004,30]
[421353998,1777488664000,-506.0,0.0004,120]
[421353999,1777488664000,-1500.0,0.0004,120]
[421353997,1777488664000,-500.0,0.0004,120]
[421353990,1777488664000,-4000.35,0.0004,7]
[421353994,1777488664000,-10823.84296989,0.0004,2]
[421353992,1777488664000,-24051.37390013,0.0004,2]
[421353991,1777488664000,-30797.2882363,0.0004,2]
[421353988,1777488664000,-15100.0,0.0004,120]
[421354005,1777488664000,-318.0,0.0004,30]
[421353993,1777488664000,-4161.61224481,0.0004,2]
[421354003,1777488664000,-10214.4,0.0004,120]
[421354017,1777488664000,-705.18,0.0004,120]
[421354001,1777488664000,-167.45601382,0.0004,120]
[421354006,1777488664000,-11974.889475,0.0004,4]
[421354004,1777488664000,-724.25480285,0.0004,4]
[421354002,1777488664000,-500.0,0.0004,120]
[421354007,1777488664000,-500.0,0.0004,30]
[421354018,1777488664000,-320.4,0.0004,120]
[421354020,1777488664000,-500.0,0.0004,120]
[421354009,1777488664000,-500.0,0.0004,30]
[421354019,1777488664000,-150.0,0.0004,120]
[421354010,1777488664000,-4220.68,0.0004,60]
[421354014,1777488664000,-399.44,0.0004,120]
[421353996,1777488664000,-500.0,0.0004,120]
[421354000,1777488664000,-169.0,0.0004,30]
[421353986,1777488664000,-20349.5082311,0.0004,120]
[421353972,1777488664000,-18231.74722038,0.0004,2]
[421353995,1777488664000,-250.0,0.0004,100]
[421353962,1777488664000,-169.50169967,0.0004,30]
[421353961,1777488664000,-21008.32630562,0.0004,120]
[421353963,1777488664000,-600.0,0.0004,90]
[421354016,1777488664000,-275.94,0.0004,120]
[421353967,1777488664000,-369.0240933,0.0004,79]
[421353965,1777488664000,-501.0,0.0004,120]
[421353974,1777488664000,-172.0,0.0004,120]
[421353964,1777488664000,-14807.0,0.0004,120]
[421353966,1777488664000,-1000.0,0.0004,120]
[421353973,1777488664000,-5234.05282823,0.0004,7]
[421353969,1777488664000,-1694.65579999,0.0004,120]
[421353968,1777488664000,-538.9505589,0.0004,120]
[421353989,1777488664000,-190.99610724,0.0004,120]
[421353971,1777488664000,-55417.40464311,0.0004,7]
[421353976,1777488664000,-162.0,0.0004,60]